[Event "Open Cappelle-la-Grande"]
[Date "2025.02.19"]
[White "Bacrot, Alexandre"]
[Black "Ringuet, Noe"]
[WhiteElo "2423"]
[BlackElo "2239"]
[Round "6.6.14"]
[Result "1/2-1/2"]
[TimeControl "40/5400+30:1800+30"]

1. e4 {[%clk 1:30:59]} 1... d6 {[%clk 1:28:49]} 2. d4 {[%clk 1:31:23]} 2... Nf6
{[%clk 1:29:10]} 3. Nc3 {[%clk 1:31:52]} 3... Nbd7 {[%clk 1:29:32]} 4. f4 {[%clk
1:32:00]} 4... Nb6 {[%clk 1:29:55]} 5. Nf3 {[%clk 1:29:46]} 5... d5 {[%clk
1:30:20]} 6. e5 {[%clk 1:29:31]} 6... Ne4 {[%clk 1:30:38]} 7. Bd3 {[%clk
1:23:56]} 7... Bf5 {[%clk 1:30:42]} 8. O-O {[%clk 1:22:00]} 8... Nxc3 {[%clk
1:27:14]} 9. bxc3 {[%clk 1:22:28]} 9... e6 {[%clk 1:22:45]} 10. Bxf5 {[%clk
1:18:55]} 10... exf5 {[%clk 1:23:08]} 11. e6 {[%clk 1:15:31]} 11... fxe6 {[%clk
1:12:11]} 12. Ng5 {[%clk 1:03:30]} 12... Qd7 {[%clk 1:10:43]} 13. Nxe6 {[%clk
1:03:43]} 13... Kf7 {[%clk 1:10:33]} 14. Ng5+ {[%clk 0:54:02]} 14... Kg8 {[%clk
1:09:09]} 15. Nf3 {[%clk 0:54:03]} 15... Bd6 {[%clk 0:55:24]} 16. Ne5 {[%clk
0:53:45]} 16... Bxe5 {[%clk 0:48:04]} 17. fxe5 {[%clk 0:54:07]} 17... Nc4 {[%clk
0:43:17]} 18. Rb1 {[%clk 0:52:10]} 18... b6 {[%clk 0:43:00]} 19. Qd3 {[%clk
0:48:27]} 19... Rf8 {[%clk 0:36:07]} 20. Bf4 {[%clk 0:48:54]} 20... Qe6 {[%clk
0:35:25]} 21. Rf2 {[%clk 0:48:02]} 21... Kf7 {[%clk 0:29:01]} 22. Rbf1 {[%clk
0:48:26]} 22... h5 {[%clk 0:21:12]} 23. Bg5 {[%clk 0:46:31]} 23... g6 {[%clk
0:21:37]} 24. h3 {[%clk 0:40:25]} 24... Ke8 {[%clk 0:19:25]} 25. Bf6 {[%clk
0:35:24]} 25... Rhg8 {[%clk 0:18:53]} 26. Qg3 {[%clk 0:35:05]} 26... Kd7 {[%clk
0:18:41]} 27. Bh4 {[%clk 0:35:20]} 27... Kc8 {[%clk 0:17:11]} 28. Qg5 {[%clk
0:35:17]} 28... Kb7 {[%clk 0:17:24]} 29. Rf3 {[%clk 0:32:08]} 29... a5 {[%clk
0:15:24]} 30. Rg3 {[%clk 0:31:49]} 30... Re8 {[%clk 0:13:15]} 31. Qh6 {[%clk
0:30:24]} 31... Qf7 {[%clk 0:08:03]} 32. Qc1 {[%clk 0:30:16]} 32... Re6 {[%clk
0:07:33]} 33. Rf2 {[%clk 0:27:52]} 33... Qe8 {[%clk 0:07:47]} 34. Kh2 {[%clk
0:27:50]} 34... Ka6 {[%clk 0:04:39]} 35. Qg5 {[%clk 0:27:49]} 35... Rf8 {[%clk
0:04:25]} 36. Qf4 {[%clk 0:26:00]} 36... Qa4 {[%clk 0:04:27]} 37. Qh6 {[%clk
0:26:11]} 37... Qe8 {[%clk 0:04:05]} 38. Bf6 {[%clk 0:23:12]} 38... Rfxf6 {[%clk
0:02:05]} 39. exf6 {[%clk 0:23:35]} 39... Rxf6 {[%clk 0:02:24]} 40. Qf4 {[%clk
0:22:32]} 40... Kb7 {[%clk 0:01:17]} 41. Qf3 {[%clk 0:22:09]} 41... Qc6 {[%clk
0:27:31]} 42. Qf4 {[%clk 0:16:05]} 1/2-1/2

[Variant "Standard"]
[Site "Europe Echecs"]

[Event "Open Cappelle-la-Grande"]
[Date "2025.02.19"]
[White "Girel, Joseph"]
[Black "Yordanov, Lachezar"]
[WhiteElo "2484"]
[BlackElo "2352"]
[Round "6.6.15"]
[Result "1-0"]
[TimeControl "40/5400+30:1800+30"]

1. d4 {[%clk 1:30:50]} 1... Nf6 {[%clk 1:30:19]} 2. c4 {[%clk 1:31:00]} 2... e6
{[%clk 1:30:43]} 3. Nf3 {[%clk 1:31:05]} 3... d5 {[%clk 1:30:58]} 4. g3 {[%clk
1:31:18]} 4... Be7 {[%clk 1:31:11]} 5. Bg2 {[%clk 1:31:22]} 5... O-O {[%clk
1:31:33]} 6. O-O {[%clk 1:31:26]} 6... dxc4 {[%clk 1:31:43]} 7. Qc2 {[%clk
1:31:07]} 7... a6 {[%clk 1:32:05]} 8. a4 {[%clk 1:30:31]} 8... Bd7 {[%clk
1:31:46]} 9. Rd1 {[%clk 1:27:36]} 9... Bc6 {[%clk 1:26:19]} 10. Bg5 {[%clk
1:27:30]} 10... Nbd7 {[%clk 1:17:34]} 11. Nbd2 {[%clk 1:27:03]} 11... b5 {[%clk
1:05:38]} 12. b3 {[%clk 1:27:07]} 12... Bb7 {[%clk 1:04:58]} 13. bxc4 {[%clk
1:25:23]} 13... bxc4 {[%clk 0:54:46]} 14. Rab1 {[%clk 1:19:35]} 14... Ra7 {[%clk
0:52:13]} 15. Rxb7 {[%clk 1:17:02]} 15... Rxb7 {[%clk 0:52:01]} 16. Ne5 {[%clk
1:15:58]} 16... Nxe5 {[%clk 0:51:08]} 17. Bxb7 {[%clk 1:12:16]} 17... Qxd4
{[%clk 0:50:54]} 18. Be3 {[%clk 1:06:25]} 18... Qg4 {[%clk 0:50:15]} 19. Nf3
{[%clk 1:05:45]} 19... Bd6 {[%clk 0:31:53]} 20. Nxe5 {[%clk 1:01:47]} 20... Bxe5
{[%clk 0:31:08]} 21. Bf3 {[%clk 1:01:30]} 21... Qg6 {[%clk 0:31:32]} 22. Qxc4
{[%clk 1:01:27]} 22... a5 {[%clk 0:31:57]} 23. Qc5 {[%clk 0:54:28]} 23... Bd6
{[%clk 0:31:51]} 24. Qxa5 {[%clk 0:54:18]} 24... Qc2 {[%clk 0:32:13]} 25. Rc1
{[%clk 0:49:29]} 25... Qa2 {[%clk 0:31:40]} 26. Qb5 {[%clk 0:46:06]} 26... Nd5
{[%clk 0:27:16]} 27. Bd4 {[%clk 0:44:10]} 27... h6 {[%clk 0:24:29]} 28. a5
{[%clk 0:41:21]} 28... c5 {[%clk 0:20:16]} 29. Bxc5 {[%clk 0:34:51]} 29... Rc8
{[%clk 0:12:22]} 30. Kg2 {[%clk 0:34:14]} 30... Qd2 {[%clk 0:11:56]} 31. Rc4
{[%clk 0:33:03]} 31... Bxc5 {[%clk 0:05:06]} 32. Rxc5 {[%clk 0:33:16]} 32... Rd8
{[%clk 0:05:33]} 33. a6 {[%clk 0:31:44]} 33... Qa2 {[%clk 0:05:36]} 34. Bxd5
{[%clk 0:30:25]} 34... exd5 {[%clk 0:05:59]} 35. Qa5 {[%clk 0:30:36]} 35... Qxa5
{[%clk 0:06:17]} 36. Rxa5 {[%clk 0:30:59]} 36... Kf8 {[%clk 0:06:43]} 37. Kf3
{[%clk 0:30:12]} 37... Ke7 {[%clk 0:07:07]} 38. a7 {[%clk 0:29:16]} 38... Ra8
{[%clk 0:07:32]} 39. Ke3 {[%clk 0:29:32]} 39... Kd6 {[%clk 0:07:50]} 40. Kd4
{[%clk 0:29:46]} 40... Kc6 {[%clk 0:08:15]} 41. Ra2 {[%clk 0:29:52]} 41... h5
{[%clk 0:08:37]} 42. h4 {[%clk 0:29:55]} 42... f6 {[%clk 0:08:40]} 43. Ra3
{[%clk 0:29:08]} 1-0

[Variant "Standard"]
[Site "Europe Echecs"]

[Event "Open Cappelle-la-Grande"]
[Date "2025.02.19"]
[White "Laurent-Paoli, Pierre"]
[Black "Mannion, Stephen R"]
[WhiteElo "2565"]
[BlackElo "2167"]
[Round "6.6.16"]
[Result "1/2-1/2"]
[TimeControl "40/5400+30:1800+30"]

1. e4 {[%clk 1:20:14]} 1... e5 {[%clk 1:30:53]} 2. Nf3 {[%clk 1:20:35]} 2... Nc6
{[%clk 1:31:17]} 3. Bb5 {[%clk 1:21:02]} 3... a6 {[%clk 1:31:41]} 4. Ba4 {[%clk
1:21:29]} 4... Nf6 {[%clk 1:32:05]} 5. O-O {[%clk 1:20:55]} 5... Be7 {[%clk
1:32:21]} 6. Re1 {[%clk 1:21:01]} 6... b5 {[%clk 1:32:44]} 7. Bb3 {[%clk
1:21:29]} 7... d6 {[%clk 1:33:08]} 8. c3 {[%clk 1:21:48]} 8... O-O {[%clk
1:33:27]} 9. h3 {[%clk 1:22:09]} 9... Na5 {[%clk 1:33:49]} 10. Bc2 {[%clk
1:22:35]} 10... c5 {[%clk 1:34:10]} 11. d4 {[%clk 1:23:01]} 11... Nd7 {[%clk
1:34:26]} 12. Nbd2 {[%clk 1:21:27]} 12... exd4 {[%clk 1:34:40]} 13. cxd4 {[%clk
1:21:53]} 13... Nc6 {[%clk 1:35:03]} 14. d5 {[%clk 1:22:21]} 14... Nce5 {[%clk
1:35:22]} 15. Nxe5 {[%clk 1:22:41]} 15... Nxe5 {[%clk 1:35:46]} 16. a4 {[%clk
1:22:59]} 16... Rb8 {[%clk 1:35:54]} 17. axb5 {[%clk 1:21:47]} 17... axb5 {[%clk
1:36:13]} 18. f4 {[%clk 1:22:15]} 18... Ng6 {[%clk 1:36:30]} 19. Nf3 {[%clk
1:22:42]} 19... Bh4 {[%clk 1:36:01]} 20. Rf1 {[%clk 1:23:04]} 20... Bg3 {[%clk
1:35:12]} 21. f5 {[%clk 1:23:09]} 21... Ne5 {[%clk 1:35:10]} 22. Ng5 {[%clk
1:23:27]} 22... h6 {[%clk 1:33:23]} 23. f6 {[%clk 1:18:16]} 23... gxf6 {[%clk
1:33:28]} 24. Nf3 {[%clk 1:18:41]} 24... Kg7 {[%clk 1:33:43]} 25. Nxe5 {[%clk
1:12:38]} 25... Bxe5 {[%clk 1:33:21]} 26. Ra7 {[%clk 1:12:58]} 26... Bd7 {[%clk
1:32:05]} 27. Bf4 {[%clk 0:49:32]} 27... Ra8 {[%clk 1:26:55]} 28. Rxa8 {[%clk
0:42:00]} 28... Qxa8 {[%clk 1:27:17]} 29. Qf3 {[%clk 0:42:07]} 29... Qd8 {[%clk
0:32:52]} 30. Qg3+ {[%clk 0:40:50]} 30... Kh7 {[%clk 0:33:17]} 31. Qh4 {[%clk
0:41:02]} 31... Rh8 {[%clk 0:33:37]} 32. Bxe5 {[%clk 0:36:39]} 32... dxe5 {[%clk
0:31:55]} 33. Qxf6 {[%clk 0:34:19]} 33... Qxf6 {[%clk 0:32:07]} 34. Rxf6 {[%clk
0:34:45]} 34... Kg7 {[%clk 0:31:57]} 35. Rd6 {[%clk 0:35:11]} 35... Be8 {[%clk
0:09:53]} 36. b3 {[%clk 0:31:01]} 36... c4 {[%clk 0:05:13]} 37. bxc4 {[%clk
0:31:25]} 37... bxc4 {[%clk 0:05:41]} 38. Kf2 {[%clk 0:31:48]} 38... Bb5 {[%clk
0:04:37]} 39. Rb6 {[%clk 0:25:52]} 39... Bd7 {[%clk 0:04:36]} 40. Ke3 {[%clk
0:17:07]} 40... Ra8 {[%clk 0:04:25]} 41. Kd2 {[%clk 0:14:08]} 41... Ra3 {[%clk
0:30:06]} 42. Rb7 {[%clk 0:43:48]} 42... c3+ {[%clk 0:21:00]} 43. Ke3 {[%clk
0:37:31]} 43... Bc8 {[%clk 0:19:26]} 44. Rc7 {[%clk 0:35:07]} 44... Ba6 {[%clk
0:19:49]} 45. g4 {[%clk 0:33:19]} 45... Bb5 {[%clk 0:05:56]} 46. h4 {[%clk
0:25:56]} 46... Kf6 {[%clk 0:06:04]} 47. Rb7 {[%clk 0:24:33]} 47... Bc4 {[%clk
0:03:32]} 48. Rb6+ {[%clk 0:19:19]} 48... Kg7 {[%clk 0:03:52]} 49. Rb4 {[%clk
0:12:39]} 49... Ba6 {[%clk 0:03:55]} 50. Bb3 {[%clk 0:06:54]} 50... Ra1 {[%clk
0:03:49]} 51. d6 {[%clk 0:06:59]} 51... Bc8 {[%clk 0:02:54]} 52. Ba4 {[%clk
0:03:02]} 52... Bxg4 {[%clk 0:03:04]} 53. Kd3 {[%clk 0:01:47]} 53... c2 {[%clk
0:03:24]} 54. Bxc2 {[%clk 0:00:41]} 54... Ra6 {[%clk 0:03:49]} 55. Ke3 {[%clk
0:00:42]} 55... Rxd6 {[%clk 0:04:08]} 56. Rb5 {[%clk 0:00:58]} 56... Kf6 {[%clk
0:03:59]} 57. Bb3 {[%clk 0:01:09]} 57... Be6 {[%clk 0:03:13]} 58. Bxe6 {[%clk
0:01:30]} 58... Kxe6 {[%clk 0:03:27]} 59. Ra5 {[%clk 0:01:19]} 59... Rb6 {[%clk
0:03:41]} 60. Kf3 {[%clk 0:00:57]} 60... f5 {[%clk 0:03:36]} 61. exf5+ {[%clk
0:00:51]} 61... Kxf5 {[%clk 0:04:03]} 62. Ra3 {[%clk 0:00:46]} 62... h5 {[%clk
0:02:59]} 63. Ra8 {[%clk 0:00:38]} 63... e4+ {[%clk 0:02:21]} 64. Ke3 {[%clk
0:00:40]} 64... Rb3+ {[%clk 0:02:36]} 65. Ke2 {[%clk 0:01:09]} 65... Kg4 {[%clk
0:01:57]} 66. Re8 {[%clk 0:01:17]} 66... Rb4 {[%clk 0:02:12]} 67. Ke3 {[%clk
0:00:49]} 67... Kxh4 {[%clk 0:02:37]} 68. Kf4 {[%clk 0:01:05]} 68... Kh3 {[%clk
0:02:12]} 69. Ra8 {[%clk 0:00:42]} 69... h4 {[%clk 0:01:55]} 70. Ra3+ {[%clk
0:00:51]} 70... Kg2 {[%clk 0:01:11]} 71. Ra2+ {[%clk 0:01:21]} 71... Kf1 {[%clk
0:01:14]} 72. Ra1+ {[%clk 0:01:09]} 72... Ke2 {[%clk 0:01:35]} 73. Ra2+ {[%clk
0:01:37]} 73... Kd3 {[%clk 0:01:39]} 74. Ra3+ {[%clk 0:02:03]} 74... Kd4 {[%clk
0:01:48]} 75. Ra8 {[%clk 0:01:31]} 75... h3 {[%clk 0:01:30]} 76. Rd8+ {[%clk
0:01:59]} 76... Kc3 {[%clk 0:01:43]} 77. Ke3 {[%clk 0:01:51]} 77... h2 {[%clk
0:00:36]} 78. Rc8+ {[%clk 0:01:44]} 78... Rc4 {[%clk 0:00:36]} 79. Rh8 {[%clk
0:02:11]} 79... Kb4 {[%clk 0:00:54]} 1/2-1/2

[Variant "Standard"]
[Site "Europe Echecs"]

[Event "Open Cappelle-la-Grande"]
[Date "2025.02.19"]
[White "Le Goff, Ronan"]
[Black "Eugene, Floryan"]
[WhiteElo "2240"]
[BlackElo "2468"]
[Round "6.6.17"]
[Result "0-1"]
[TimeControl "40/5400+30:1800+30"]

1. Nf3 {[%clk 1:23:51]} 1... Nf6 {[%clk 1:27:43]} 2. d4 {[%clk 1:22:54]} 2... g6
{[%clk 1:28:06]} 3. b3 {[%clk 1:23:09]} 3... Bg7 {[%clk 1:26:13]} 4. Bb2 {[%clk
1:23:30]} 4... O-O {[%clk 1:26:11]} 5. Nbd2 {[%clk 1:21:02]} 5... a5 {[%clk
1:17:42]} 6. a3 {[%clk 1:19:09]} 6... a4 {[%clk 1:09:25]} 7. b4 {[%clk 1:16:05]}
7... d6 {[%clk 1:05:07]} 8. e3 {[%clk 1:03:21]} 8... c5 {[%clk 1:04:03]} 9. dxc5
{[%clk 0:58:39]} 9... dxc5 {[%clk 1:04:24]} 10. c4 {[%clk 0:48:48]} 10... Qb6
{[%clk 0:58:00]} 11. Bc3 {[%clk 0:39:30]} 11... Rd8 {[%clk 0:57:19]} 12. Qc1
{[%clk 0:39:24]} 12... Nc6 {[%clk 0:57:01]} 13. bxc5 {[%clk 0:32:19]} 13... Qxc5
{[%clk 0:56:33]} 14. Rb1 {[%clk 0:32:22]} 14... Bf5 {[%clk 0:45:09]} 15. Rb5
{[%clk 0:32:11]} 15... Qd6 {[%clk 0:45:20]} 16. c5 {[%clk 0:26:55]} 16... Qc7
{[%clk 0:42:12]} 17. Qb2 {[%clk 0:23:49]} 17... Na5 {[%clk 0:37:57]} 18. Be5
{[%clk 0:17:51]} 18... Qc8 {[%clk 0:36:36]} 19. Nc4 {[%clk 0:15:51]} 19... Nxc4
{[%clk 0:28:25]} 20. Bxc4 {[%clk 0:16:18]} 20... Bd7 {[%clk 0:28:49]} 21. Rxb7
{[%clk 0:13:04]} 21... Qxc5 {[%clk 0:29:11]} 22. Rc7 {[%clk 0:07:59]} 22... Qa5+
{[%clk 0:28:13]} 23. Qd2 {[%clk 0:07:29]} 23... Ne8 {[%clk 0:27:44]} 24. Qxa5
{[%clk 0:00:57]} 24... Rxa5 {[%clk 0:28:10]} 25. Bg3 {[%clk 0:01:16]} 25... Nxc7
{[%clk 0:15:30]} 26. Bxc7 {[%clk 0:01:40]} 26... Rda8 {[%clk 0:15:30]} 27. Bxa5
{[%clk 0:01:43]} 27... Rxa5 {[%clk 0:15:57]} 28. Ke2 {[%clk 0:00:36]} 28... Bb2
{[%clk 0:14:30]} 29. Rd1 {[%clk 0:01:00]} 29... Bc6 {[%clk 0:14:53]} 30. Nd4
{[%clk 0:00:35]} 30... Bxg2 {[%clk 0:14:23]} 31. f3 {[%clk 0:00:55]} 31... Bxa3
{[%clk 0:13:44]} 32. Nc6 {[%clk 0:00:35]} 32... Rc5 {[%clk 0:13:26]} 33. Rd8+
{[%clk 0:00:33]} 33... Kg7 {[%clk 0:13:53]} 34. Bd5 {[%clk 0:00:39]} 34... Bh3
{[%clk 0:13:23]} 35. Nxe7 {[%clk 0:00:50]} 35... Rc2+ {[%clk 0:13:47]} 36. Kd3
{[%clk 0:01:08]} 36... Bxe7 {[%clk 0:14:13]} 37. Re8 {[%clk 0:01:28]} 37... Rc7
{[%clk 0:14:40]} 38. Kd4 {[%clk 0:00:55]} 0-1

[Variant "Standard"]
[Site "Europe Echecs"]

[Event "Open Cappelle-la-Grande"]
[Date "2025.02.19"]
[White "Raja Rithvik R"]
[Black "Iniyan, Pa"]
[WhiteElo "2522"]
[BlackElo "2523"]
[Round "7.7.1"]
[Result "1/2-1/2"]
[TimeControl "40/5400+30:1800+30"]

1. d4 {[%clk 1:30:11]} 1... d5 {[%clk 1:29:02]} 2. c4 {[%clk 1:30:29]} 2... c6
{[%clk 1:29:27]} 3. Nf3 {[%clk 1:28:52]} 3... Nf6 {[%clk 1:27:48]} 4. Nc3 {[%clk
1:26:28]} 4... e6 {[%clk 1:28:00]} 5. cxd5 {[%clk 1:26:40]} 5... exd5 {[%clk
1:28:13]} 6. Bf4 {[%clk 1:27:06]} 6... Bd6 {[%clk 1:28:20]} 7. Bxd6 {[%clk
1:26:54]} 7... Qxd6 {[%clk 1:28:42]} 8. Qb3 {[%clk 1:22:56]} 8... Qe7 {[%clk
1:28:38]} 9. e3 {[%clk 1:23:11]} 9... Bf5 {[%clk 1:28:30]} 10. Nh4 {[%clk
1:22:47]} 10... Be6 {[%clk 1:27:58]} 11. Bd3 {[%clk 1:22:15]} 11... Ne4 {[%clk
1:26:50]} 12. Nf3 {[%clk 1:22:11]} 12... Nd6 {[%clk 1:27:10]} 13. O-O {[%clk
1:20:45]} 13... Nd7 {[%clk 1:22:16]} 14. h3 {[%clk 1:20:56]} 14... O-O {[%clk
1:22:35]} 15. Qc2 {[%clk 1:21:19]} 15... g6 {[%clk 1:23:00]} 16. Rac1 {[%clk
1:21:38]} 16... Bf5 {[%clk 1:23:20]} 17. Bxf5 {[%clk 1:21:51]} 17... Nxf5 {[%clk
1:23:44]} 18. Rfe1 {[%clk 1:22:10]} 18... Nd6 {[%clk 1:24:06]} 19. Nd2 {[%clk
1:22:19]} 19... Rfe8 {[%clk 1:24:23]} 20. a3 {[%clk 1:22:37]} 20... a5 {[%clk
1:24:47]} 1/2-1/2

[Variant "Standard"]
[Site "Europe Echecs"]

[Event "Open Cappelle-la-Grande"]
[Date "2025.02.19"]
[White "Abergel, Thal"]
[Black "Bauer, Christian"]
[WhiteElo "2419"]
[BlackElo "2548"]
[Round "7.7.2"]
[Result "1/2-1/2"]
[TimeControl "40/5400+30:1800+30"]

1. e4 {[%clk 1:30:57]} 1... Nc6 {[%clk 1:24:57]} 2. d4 {[%clk 1:28:36]} 2... d5
{[%clk 1:24:31]} 3. e5 {[%clk 1:28:12]} 3... f6 {[%clk 1:23:32]} 4. f4 {[%clk
1:26:20]} 4... Nh6 {[%clk 1:23:47]} 5. c3 {[%clk 1:24:38]} 5... Bf5 {[%clk
1:21:57]} 6. Nf3 {[%clk 1:23:31]} 6... e6 {[%clk 1:22:06]} 7. Be3 {[%clk
1:22:43]} 7... Be7 {[%clk 1:14:17]} 8. Be2 {[%clk 1:17:11]} 8... O-O {[%clk
1:10:19]} 9. O-O {[%clk 1:14:18]} 9... Qe8 {[%clk 1:07:45]} 10. h3 {[%clk
1:09:11]} 10... Qg6 {[%clk 0:53:34]} 11. Nh4 {[%clk 1:05:38]} 11... Qg3 {[%clk
0:52:39]} 12. Nxf5 {[%clk 0:53:00]} 12... Nxf5 {[%clk 0:51:43]} 13. Rf3 {[%clk
0:53:20]} 13... Qg6 {[%clk 0:50:38]} 14. Bf2 {[%clk 0:53:20]} 14... fxe5 {[%clk
0:49:06]} 15. fxe5 {[%clk 0:53:45]} 15... Qh6 {[%clk 0:38:01]} 16. Nd2 {[%clk
0:48:07]} 16... Bh4 {[%clk 0:37:24]} 17. Qe1 {[%clk 0:37:58]} 17... Nce7 {[%clk
0:37:38]} 18. Bd3 {[%clk 0:33:10]} 18... Bxf2+ {[%clk 0:34:27]} 19. Qxf2 {[%clk
0:31:32]} 19... Nh4 {[%clk 0:34:42]} 20. Rxf8+ {[%clk 0:31:49]} 20... Rxf8
{[%clk 0:35:08]} 21. Qe2 {[%clk 0:32:11]} 21... c5 {[%clk 0:17:45]} 22. dxc5
{[%clk 0:29:57]} 22... Nc6 {[%clk 0:18:10]} 23. Bb5 {[%clk 0:26:22]} 23... Qg5
{[%clk 0:13:56]} 24. Bxc6 {[%clk 0:24:03]} 24... bxc6 {[%clk 0:14:25]} 25. Rf1
{[%clk 0:23:46]} 25... Rxf1+ {[%clk 0:14:36]} 26. Kxf1 {[%clk 0:20:46]} 26...
Nf5 {[%clk 0:12:52]} 27. Kg1 {[%clk 0:20:28]} 27... Ng3 {[%clk 0:12:46]} 28. Qe1
{[%clk 0:19:54]} 28... h5 {[%clk 0:12:27]} 29. b4 {[%clk 0:19:54]} 29... h4
{[%clk 0:12:22]} 30. Nf3 {[%clk 0:19:54]} 30... Qf4 {[%clk 0:12:21]} 31. a4 Qc4
{[%clk 0:11:12]} 32. Nd4 1/2-1/2

[Variant "Standard"]
[Site "Europe Echecs"]

[Event "Open Cappelle-la-Grande"]
[Date "2025.02.19"]
[White "Belkaid, Sohan"]
[Black "Boyer, Mahel"]
[WhiteElo "2370"]
[BlackElo "2509"]
[Round "7.7.3"]
[Result "0-1"]
[TimeControl "40/5400+30:1800+30"]

1. e4 {[%clk 1:30:52]} 1... Nc6 {[%clk 1:30:44]} 2. Nf3 {[%clk 1:28:48]} 2... d6
{[%clk 1:31:11]} 3. d4 {[%clk 1:24:21]} 3... Nf6 {[%clk 1:29:59]} 4. Nc3 {[%clk
1:24:36]} 4... e6 {[%clk 1:30:26]} 5. h3 {[%clk 1:17:12]} 5... Be7 {[%clk
1:29:45]} 6. Be3 {[%clk 1:09:56]} 6... O-O {[%clk 1:28:36]} 7. d5 {[%clk
0:55:00]} 7... exd5 {[%clk 1:19:33]} 8. exd5 {[%clk 0:55:19]} 8... Ne5 {[%clk
1:20:02]} 9. Nd4 {[%clk 0:49:56]} 9... Re8 {[%clk 1:16:22]} 10. a4 {[%clk
0:44:40]} 10... c5 {[%clk 1:08:45]} 11. Nb3 {[%clk 0:40:14]} 11... Nfd7 {[%clk
1:03:17]} 12. Be2 {[%clk 0:28:42]} 12... Bg5 {[%clk 1:03:07]} 13. Bc1 {[%clk
0:28:00]} 13... Bxc1 {[%clk 1:00:34]} 14. Qxc1 {[%clk 0:27:39]} 14... c4 {[%clk
0:49:37]} 15. Nd4 {[%clk 0:13:14]} 15... Qb6 {[%clk 0:42:48]} 16. Nf5 {[%clk
0:08:29]} 16... Nf6 {[%clk 0:36:36]} 17. Ne3 {[%clk 0:08:31]} 17... Bd7 {[%clk
0:36:09]} 18. O-O {[%clk 0:07:47]} 18... Qd4 {[%clk 0:36:29]} 19. Ra3 {[%clk
0:05:37]} 19... a6 {[%clk 0:32:00]} 20. a5 {[%clk 0:05:36]} 20... Rac8 {[%clk
0:31:08]} 21. Qd1 {[%clk 0:00:57]} 21... Qf4 {[%clk 0:21:22]} 22. g3 {[%clk
0:00:46]} 22... Qh6 {[%clk 0:21:40]} 23. h4 {[%clk 0:00:52]} 23... g5 {[%clk
0:21:21]} 24. hxg5 {[%clk 0:00:57]} 24... Qxg5 {[%clk 0:21:49]} 25. Ng2 {[%clk
0:00:33]} 25... Ng6 {[%clk 0:18:09]} 26. Qc1 {[%clk 0:00:32]} 26... Qf5 {[%clk
0:18:38]} 27. Qh6 {[%clk 0:00:31]} 27... Qxc2 {[%clk 0:18:25]} 28. Ne3 {[%clk
0:00:33]} 28... Qxb2 {[%clk 0:18:34]} 29. Rfa1 {[%clk 0:00:50]} 29... Qb4 {[%clk
0:18:40]} 30. Kg2 {[%clk 0:00:49]} 30... Re5 {[%clk 0:17:59]} 31. Na4 {[%clk
0:00:40]} 31... Qxa5 {[%clk 0:16:01]} 32. Nb2 {[%clk 0:00:48]} 32... Qd2 {[%clk
0:14:53]} 33. Nbxc4 {[%clk 0:00:32]} 33... Qxe2 {[%clk 0:15:06]} 34. Nxe5 {[%clk
0:00:46]} 34... dxe5 {[%clk 0:15:30]} 35. R1a2 {[%clk 0:00:31]} 35... Qe1 {[%clk
0:14:56]} 36. Ra1 {[%clk 0:00:32]} 36... Qb4 {[%clk 0:14:08]} 37. Qg5 {[%clk
0:00:32]} 37... Nxd5 {[%clk 0:14:21]} 38. Nf5 {[%clk 0:00:33]} 38... Qe4+ {[%clk
0:14:21]} 39. Rf3 {[%clk 0:00:55]} 39... Bxf5 {[%clk 0:14:40]} 40. Qxf5 {[%clk
0:01:18]} 40... Ndf4+ {[%clk 0:14:58]} 0-1

[Variant "Standard"]
[Site "Europe Echecs"]

[Event "Open Cappelle-la-Grande"]
[Date "2025.02.19"]
[White "Muthaiah AL"]
[Black "Sorensen, Hampus"]
[WhiteElo "2474"]
[BlackElo "2430"]
[Round "7.7.4"]
[Result "1/2-1/2"]
[TimeControl "40/5400+30:1800+30"]

1. d4 {[%clk 1:30:04]} 1... Nf6 {[%clk 1:30:36]} 2. Bf4 {[%clk 1:30:17]} 2... d5
{[%clk 1:30:14]} 3. e3 {[%clk 1:30:37]} 3... c5 {[%clk 1:30:16]} 4. Nf3 {[%clk
1:30:51]} 4... Nc6 {[%clk 1:30:22]} 5. Nbd2 {[%clk 1:30:56]} 5... cxd4 {[%clk
1:29:40]} 6. exd4 {[%clk 1:30:57]} 6... a6 {[%clk 1:29:31]} 7. c3 {[%clk
1:30:18]} 7... Bf5 {[%clk 1:29:21]} 8. Be2 {[%clk 1:20:29]} 8... h6 {[%clk
1:29:06]} 9. Ne5 {[%clk 1:19:58]} 9... e6 {[%clk 1:24:25]} 10. Nxc6 {[%clk
1:12:33]} 10... bxc6 {[%clk 1:24:41]} 11. Qa4 {[%clk 1:12:50]} 11... Qd7 {[%clk
1:20:43]} 12. b4 {[%clk 1:08:56]} 12... Ne4 {[%clk 1:16:52]} 13. Nxe4 {[%clk
1:04:41]} 13... Bxe4 {[%clk 1:17:16]} 14. O-O {[%clk 1:04:03]} 1/2-1/2

[Variant "Standard"]
[Site "Europe Echecs"]

[Event "Open Cappelle-la-Grande"]
[Date "2025.02.19"]
[White "Nikolov, Momchil"]
[Black "Tahay, Alexis"]
[WhiteElo "2433"]
[BlackElo "2386"]
[Round "7.7.5"]
[Result "0-1"]
[TimeControl "40/5400+30:1800+30"]

1. e4 {[%clk 1:30:48]} 1... c5 {[%clk 1:29:20]} 2. Nf3 {[%clk 1:31:09]} 2... d6
{[%clk 1:29:47]} 3. d4 {[%clk 1:31:31]} 3... cxd4 {[%clk 1:30:13]} 4. Nxd4
{[%clk 1:31:55]} 4... Nf6 {[%clk 1:30:37]} 5. Nc3 {[%clk 1:32:16]} 5... a6
{[%clk 1:30:48]} 6. h3 {[%clk 1:32:26]} 6... e5 {[%clk 1:30:36]} 7. Nb3 {[%clk
1:32:47]} 7... Be7 {[%clk 1:29:34]} 8. g4 {[%clk 1:33:02]} 8... h6 {[%clk
1:29:50]} 9. Be3 {[%clk 1:32:57]} 9... Nbd7 {[%clk 1:29:27]} 10. Qf3 {[%clk
1:31:22]} 10... b5 {[%clk 1:23:01]} 11. a4 {[%clk 1:24:54]} 11... b4 {[%clk
1:22:06]} 12. Nd5 {[%clk 1:25:13]} 12... Nxd5 {[%clk 1:15:58]} 13. exd5 {[%clk
1:25:35]} 13... Nf6 {[%clk 1:13:29]} 14. O-O-O {[%clk 1:24:28]} 14... Qd7 {[%clk
1:10:21]} 15. a5 {[%clk 1:19:07]} 15... Bb7 {[%clk 1:08:46]} 16. Kb1 {[%clk
1:15:00]} 16... Rc8 {[%clk 0:59:25]} 17. Rg1 {[%clk 1:05:37]} 17... Qc7 {[%clk
0:50:30]} 18. Rd2 {[%clk 1:03:56]} 18... Nxd5 {[%clk 0:45:32]} 19. Rxd5 {[%clk
0:50:06]} 19... Qxc2+ {[%clk 0:45:53]} 20. Ka2 {[%clk 0:50:27]} 20... Qc6 {[%clk
0:46:11]} 21. Bb5 {[%clk 0:49:40]} 21... axb5 {[%clk 0:46:21]} 22. Rgd1 {[%clk
0:46:00]} 22... O-O {[%clk 0:40:12]} 23. Qg3 {[%clk 0:37:45]} 23... Ra8 {[%clk
0:36:26]} 24. R5d2 {[%clk 0:34:04]} 24... Qc7 {[%clk 0:35:58]} 25. f3 {[%clk
0:30:56]} 25... Rxa5+ {[%clk 0:34:40]} 0-1

[Variant "Standard"]
[Site "Europe Echecs"]